fUST/lending_fUST_20240916
["ID","MTS","AMOUNT","RATE_DAILY","PERIOD"]
[338251223,1726440434672,-492.15135249,0.00021917,2]
[338251224,1726440434696,-500.0,0.00021917,2]
[338251225,1726440434720,-500.0,0.00021917,2]
[338251226,1726440434746,-500.0,0.00021917,2]
[338251227,1726440434772,-500.0,0.00021917,2]
[338251228,1726440434797,-500.0,0.00021917,2]
[338251229,1726440434821,-250.45753291,0.00021917,2]
[338251230,1726440434845,-1085.64,0.00021917,2]
[338251231,1726440434868,-500.0,0.00021917,2]
[338251232,1726440434894,-500.0,0.00021917,2]
[338251233,1726440434922,-500.0,0.00021917,2]
[338251234,1726440434947,-533.33,0.00021917,2]
[338251235,1726440434974,-500.0,0.00021917,2]
[338251236,1726440435000,-959.79,0.00021917,2]
[338251237,1726440435024,-501.4034523,0.00021917,2]
[338251238,1726440435047,-500.0,0.00021917,2]
[338251239,1726440435072,-500.0,0.00021917,2]
[338251240,1726440435098,-500.0,0.00021917,2]
[338251241,1726440435122,-500.0,0.00021917,2]
[338251242,1726440435153,-500.0,0.00021917,2]
[338251243,1726440435177,-500.0,0.00021917,2]
[338251244,1726440435206,-500.0,0.00021917,2]
[338251245,1726440435230,-1441.32,0.00021917,2]
[338251246,1726440435254,-500.0,0.00021917,2]
[338251247,1726440435276,-1153.27,0.00021917,2]
[338251248,1726440435307,-711.4,0.00021917,2]
[338251249,1726440435336,-500.0,0.00021917,2]
[338251250,1726440435362,-721.33,0.00021917,2]
[338251251,1726440435386,-829.98,0.00021917,2]
[338251252,1726440435408,-500.0,0.00021917,2]
[338251253,1726440435431,-500.0,0.00021917,2]
[338251254,1726440435454,-500.0,0.00021917,2]
[338251255,1726440435476,-750.22,0.00021917,2]
[338251256,1726440435500,-500.0,0.00021917,2]
[338251257,1726440435523,-500.0,0.00021917,2]
[338251258,1726440435546,-718.15,0.00021917,2]
[338251259,1726440435568,-500.0,0.00021917,2]
[338251260,1726440435591,-500.0,0.00021917,2]
[338251261,1726440435614,-500.0,0.00021917,2]
[338251262,1726440435636,-3266.18,0.00021917,2]
[338251263,1726440435660,-500.0,0.00021917,2]
[338251264,1726440435687,-500.0,0.00021917,2]
[338251265,1726440435711,-1042.84,0.00021917,2]
[338251266,1726440435736,-801.9,0.00021917,2]
[338251267,1726440435761,-500.0,0.00021917,2]
[338251268,1726440435786,-500.0,0.00021917,2]
[338251269,1726440435810,-2231.03,0.00021917,2]
[338251270,1726440435836,-500.0,0.00021917,2]
[338251271,1726440435861,-500.0,0.00021917,2]
[338251272,1726440435886,-643.37581225,0.00021917,2]
[338251273,1726440435911,-3534.98,0.00021917,2]
[338251274,1726440435937,-1035.36,0.00021917,2]
[338251275,1726440435960,-500.0,0.00021917,2]
[338251276,1726440435988,-618.74,0.00021917,2]
[338251277,1726440436016,-2768.13,0.00021917,2]
[338251278,1726440436041,-500.0,0.00021917,2]
[338251279,1726440436066,-500.0,0.00021917,2]
[338251280,1726440436093,-956.0,0.00021917,2]
[338251281,1726440436116,-500.0,0.00021917,2]
[338251282,1726440436139,-3329.41,0.00021917,2]
[338251283,1726440436163,-677.85,0.00021917,2]
[338251284,1726440436185,-500.0,0.00021917,2]
[338251285,1726440436208,-742.28,0.00021917,2]
[338251286,1726440436233,-500.0,0.00021917,2]
[338251287,1726440436259,-753.16,0.00021917,2]
[338251288,1726440436285,-535.8,0.00021917,2]
[338251289,1726440436309,-1297.37,0.00021917,2]
[338251290,1726440436333,-500.0,0.00021917,2]
[338251291,1726440436362,-500.0,0.00021917,2]
[338251292,1726440436384,-500.0,0.00021917,2]
[338251293,1726440436406,-500.0,0.00021917,2]
[338251294,1726440436428,-1465.28,0.00021917,2]
[338251295,1726440436451,-500.0,0.00021917,2]
[338251296,1726440436474,-500.0,0.00021917,2]
[338251297,1726440436496,-420.13023116,0.00021917,2]
[338251298,1726440436521,-810.94,0.00021917,2]
[338251299,1726440436542,-500.0,0.00021917,2]
[338251300,1726440436565,-500.0,0.00021917,2]
[338251301,1726440436587,-823.1,0.00021917,2]
[338251302,1726440436612,-537.36,0.00021917,2]
[338251303,1726440436634,-500.0,0.00021917,2]
[338251304,1726440436655,-500.0,0.00021917,2]
[338251305,1726440436677,-500.0,0.00021917,2]
[338251306,1726440436699,-1049.9,0.00021917,2]
[338251307,1726440436722,-626.88,0.00021917,2]
[338251308,1726440436744,-500.0,0.00021917,2]
[338251309,1726440436765,-500.0,0.00021917,2]
[338251310,1726440436787,-500.0,0.00021917,2]
[338251311,1726440436809,-500.0,0.00021917,2]
[338251312,1726440436830,-500.0,0.00021917,2]
[338251313,1726440436858,-502.03853674,0.00021917,2]
[338251314,1726440436879,-500.0,0.00021917,2]
[338251315,1726440436900,-500.0,0.00021917,2]
[338251316,1726440436922,-500.0,0.00021917,2]
[338251317,1726440436945,-500.0,0.00021917,2]
[338251318,1726440436968,-500.0,0.00021917,2]
[338251319,1726440436992,-538.51,0.00021917,2]
[338251320,1726440437018,-767.84,0.00021917,2]
[338251321,1726440437043,-500.0,0.00021917,2]
[338251322,1726440437066,-500.0,0.00021917,2]
[338251323,1726440437092,-500.0,0.00021917,2]
[338251324,1726440437115,-508.21681731,0.00021917,2]
[338251325,1726440437138,-228.64117359,0.00021917,2]
[338251326,1726440437162,-1657.95,0.00021917,2]
[338251327,1726440437186,-1741.24,0.00021917,2]
[338251328,1726440437210,-500.0,0.00021917,2]
[338251329,1726440437464,-537.13,0.00021917,2]
[338251330,1726440437486,-1182.03,0.00021917,2]
[338251331,1726440437507,-500.0,0.00021917,2]
[338251332,1726440437528,-500.0,0.00021917,2]
[338251333,1726440437549,-500.0,0.00021917,2]
[338251334,1726440437571,-500.0,0.00021917,2]
[338251335,1726440437593,-500.0,0.00021917,2]
[338251336,1726440437615,-513.33,0.00021917,2]
[338251337,1726440437637,-1614.63,0.00021917,2]
[338251338,1726440437660,-500.0,0.00021917,2]
[338251339,1726440437681,-500.0,0.00021917,2]
[338251340,1726440437710,-500.0,0.00021917,2]
[338251341,1726440437732,-500.0,0.00021917,2]
[338251342,1726440437754,-500.97858093,0.00021917,2]
[338251343,1726440437775,-863.35,0.00021917,2]
[338251344,1726440437798,-500.0,0.00021917,2]
[338251345,1726440437820,-500.0,0.00021917,2]
[338251346,1726440437841,-500.0,0.00021917,2]
[338251347,1726440437865,-500.0,0.00021917,2]
[338251348,1726440437886,-500.0,0.00021917,2]
[338251349,1726440437906,-500.0,0.00021917,2]
[338251350,1726440437928,-500.0,0.00021917,2]
[338251351,1726440437949,-500.0,0.00021917,2]
[338251352,1726440437971,-1174.27,0.00021917,2]
[338251353,1726440437994,-500.0,0.00021917,2]
[338251354,1726440438015,-500.0,0.00021917,2]
[338251355,1726440438036,-500.0,0.00021917,2]
[338251356,1726440438057,-250.0,0.00021917,2]
[338251357,1726440438078,-500.0,0.00021917,2]
[338251358,1726440438098,-500.0,0.00021917,2]
[338251359,1726440438119,-595.4,0.00021917,2]
[338251360,1726440438142,-500.0,0.00021917,2]
[338251361,1726440438165,-500.0,0.00021917,2]
[338251362,1726440438187,-500.0,0.00021917,2]
[338251363,1726440438208,-500.0,0.00021917,2]
[338251364,1726440438229,-500.0,0.00021917,2]
[338251365,1726440438249,-613.21,0.00021917,2]
[338251366,1726440438274,-500.0,0.00021917,2]
[338251367,1726440438297,-500.0,0.00021917,2]
[338251368,1726440438319,-817.02,0.00021917,2]
[338251369,1726440438340,-1242.8,0.00021917,2]
[338251370,1726440438362,-500.0,0.00021917,2]
[338251371,1726440438385,-500.0,0.00021917,2]
[338251372,1726440438407,-538.8,0.00021917,2]
[338251373,1726440438428,-500.0,0.00021917,2]
[338251374,1726440438450,-500.0,0.00021917,2]
[338251375,1726440438472,-1064.53,0.00021917,2]
[338251376,1726440438494,-500.0,0.00021917,2]
[338251377,1726440438516,-500.0,0.00021917,2]
[338251378,1726440438536,-500.0,0.00021917,2]
[338251379,1726440438563,-508.88180463,0.00021917,2]
[338251380,1726440438585,-500.0,0.00021917,2]
[338251381,1726440438607,-515.71619572,0.00021917,2]
[338251382,1726440438629,-500.0,0.00021917,2]
[338251383,1726440438650,-911.71,0.00021917,2]
[338251384,1726440438673,-500.0,0.00021917,2]
[338251385,1726440438697,-500.0,0.00021917,2]
[338251386,1726440438721,-770.38,0.00021917,2]
[338251387,1726440438745,-1114.94,0.00021917,2]
[338251388,1726440438768,-500.0,0.00021917,2]
[338251389,1726440438791,-907.23,0.00021917,2]
[338251390,1726440438816,-500.0,0.00021917,2]
[338251391,1726440438837,-500.0,0.00021917,2]
[338251392,1726440438860,-662.96,0.00021917,2]
[338251393,1726440438881,-500.0,0.00021917,2]
[338251394,1726440438902,-500.0,0.00021917,2]
[338251395,1726440438923,-500.0,0.00021917,2]
[338251396,1726440438944,-214.63323712,0.00021917,2]
[338251397,1726440438965,-1646.55,0.00021917,2]
[338251398,1726440438987,-500.0,0.00021917,2]
[338251399,1726440439008,-500.0,0.00021917,2]
[338251400,1726440439030,-500.0,0.00021917,2]
[338251401,1726440439052,-500.0,0.00021917,2]
[338251402,1726440439073,-897.38,0.00021917,2]
[338251403,1726440439094,-500.0,0.00021917,2]
[338251404,1726440439117,-438.64407967,0.00021917,2]
[338251405,1726440439141,-2549.0,0.00021917,2]
[338251406,1726440439165,-508.88372395,0.00021917,2]
[338251407,1726440439189,-500.06128057,0.00021917,2]
[338251408,1726440439211,-798.5,0.00021917,2]
[338251409,1726440439234,-500.0,0.00021917,2]
[338251410,1726440439256,-500.0,0.00021917,2]
[338251411,1726440439278,-500.0,0.00021917,2]
[338251412,1726440439302,-500.0,0.00021917,2]
[338251413,1726440439325,-500.0,0.00021917,2]
[338251414,1726440439350,-500.0,0.00021917,2]
[338251415,1726440439371,-500.0,0.00021917,2]
[338251416,1726440439394,-500.0,0.00021917,2]
[338251417,1726440439416,-191.07342061,0.00021917,2]
[338251418,1726440440606,-1315.19657939,0.00021917,2]
[338251419,1726440440627,-268.39317929,0.00021917,2]
[338251420,1726440440648,-500.0,0.00021917,2]
[338251421,1726440440668,-3249.76,0.00021917,2]
[338251422,1726440440689,-500.0,0.00021917,2]
[338251423,1726440440711,-753.34,0.00021917,2]
[338251424,1726440440731,-239.73114768,0.00021917,2]
[338251425,1726440440752,-500.0,0.00021917,2]
[338251426,1726440440773,-500.0,0.00021917,2]
[338251427,1726440440793,-500.0,0.00021917,2]
[338251428,1726440441032,-2181.06934664,0.00021917,2]
[338251468,1726440631990,-160.703893,0.00021069,2]
[338251470,1726440631999,-126.09807345,0.00021142,2]
[338251480,1726440638097,-34.60581955,0.00021142,2]
[338251482,1726440638107,-160.703893,0.00021215,2]
[338251483,1726440638116,-160.703893,0.00021288,2]
[338251484,1726440638126,-160.703893,0.00021361,2]
[338251485,1726440638136,-160.703893,0.00021434,2]
[338251486,1726440638145,-160.703893,0.00021508,2]
[338251487,1726440638154,-291.22198009,0.00021571,2]
[338251495,1726440640983,-196.0663379,0.00021571,2]
[338251496,1726440640995,-160.703893,0.00021581,2]
[338251497,1726440641005,-160.703893,0.00021654,2]
[338251498,1726440641016,-160.703893,0.00021727,2]
[338251499,1726440641025,-160.703893,0.000218,2]
[338251500,1726440641035,-472.16854948,0.00021816,2]
[338251501,1726440641045,-1162.973547,0.00021817,2]
[338251502,1726440641055,-160.703893,0.00021873,2]
[338251503,1726440641066,-300.0,0.00021906,2]
[338251504,1726440641075,-300.0,0.00021906,2]
[338251505,1726440641085,-23066.2662221,0.00021907,3]
[338251506,1726440641190,-1167.498917,0.00021907,3]
[338251507,1726440641211,-898.78971019,0.00021907,3]
[338251508,1726440641223,-1809.21263731,0.00021907,3]
[338251509,1726440641235,-8832.02552825,0.00021907,3]
[338251510,1726440641371,-3885.16520325,0.00021907,3]
[338251511,1726440641385,-5255.27758816,0.00021907,3]
[338251512,1726440641398,-18167.40000003,0.00021907,3]
[338251513,1726440641409,-20680.27139939,0.00021907,3]
[338251514,1726440641421,-18782.38635905,0.00021907,3]
[338251515,1726440641438,-30385.8680312,0.00021907,3]
[338251520,1726440643273,-6861.33887514,0.00021907,3]
[338251523,1726440643288,-49549.2872366,0.00021907,3]
[338251525,1726440643299,-2116.64303488,0.00021907,3]
[338251539,1726440646085,-320.0,0.00021907,3]
[338251614,1726441832098,-300.0,0.00020287,2]
[338251628,1726441832347,-300.0,0.00020287,2]
[338251629,1726441832361,-5074.08906598,0.00020288,2]
[338251630,1726441832375,-295.505,0.00020288,2]
[338251631,1726441832387,-15016.63120773,0.00020288,2]
[338251632,1726441832399,-4428.89610944,0.00020288,2]
[338251633,1726441832417,-84.87861685,0.00020288,2]
[338251634,1726441832427,-321.578919,0.00020325,2]
[338251635,1726441832436,-250.0,0.00020721,2]
[338251636,1726441832446,-250.0,0.00020778,2]
[338251637,1726441832455,-250.0,0.00020834,2]
[338251638,1726441832465,-250.0,0.00020891,2]
[338251639,1726441832475,-250.0,0.00020948,2]
[338251640,1726441832484,-250.0,0.00021005,2]
[338251641,1726441832495,-250.0,0.00021062,2]
[338251642,1726441832505,-250.0,0.00021119,2]
[338251643,1726441832514,-250.0,0.00021175,2]
[338251644,1726441832524,-153.0,0.000212,2]
[338251645,1726441832533,-250.0,0.00021232,2]
[338251646,1726441832543,-250.0,0.00021289,2]
[338251647,1726441832553,-250.0,0.00021346,2]
[338251648,1726441832563,-250.0,0.00021403,2]
[338251649,1726441832573,-410.1493314,0.00021425,2]
[338251650,1726441832583,-250.0,0.00021459,2]
[338251651,1726441832592,-250.0,0.00021516,2]
[338251652,1726441832602,-250.0,0.00021573,2]
[338251653,1726441832611,-250.0,0.0002163,2]
[338251654,1726441832620,-411.2611725,0.00021644,2]
[338251655,1726441832629,-411.2611725,0.00021644,2]
[338251656,1726441832639,-250.0,0.00021687,2]
[338251657,1726441832648,-250.0,0.00021744,2]
[338251658,1726441832662,-16581.22425662,0.000218,3]
[338251667,1726441838372,-434.45037898,0.000218,3]
[338251668,1726441838382,-250.0,0.000218,2]
[338251669,1726441838392,-211.36348237,0.00021817,2]
[338251670,1726441838403,-972.79655279,0.00021817,2]
[338251671,1726441838422,-27882.74874288,0.00021888,2]
[338251672,1726441838432,-2554.4942853,0.00021897,3]
[338251673,1726441838442,-7663.4828559,0.00021907,3]
[338251674,1726441838451,-179.08,0.00021907,3]
[338251675,1726441838460,-537.27,0.00021907,3]
[338251676,1726441838469,-2942.60854705,0.00021917,5]
[338251677,1726441838478,-243.81562551,0.00021917,5]
[338251678,1726441838488,-500.0,0.00021917,2]
[338251679,1726441838497,-500.0,0.00021917,2]
[338251680,1726441838506,-500.0,0.00021917,2]
[338251681,1726441838516,-500.0,0.00021917,2]
[338251682,1726441838525,-500.0,0.00021917,2]
[338251683,1726441838535,-500.0,0.00021917,2]
[338251684,1726441838544,-406.11547866,0.00021917,2]
[338251685,1726441838553,-500.0,0.00021917,2]
[338251686,1726441838563,-500.0,0.00021917,2]
[338251687,1726441838572,-500.0,0.00021917,2]
[338251688,1726441838582,-500.0,0.00021917,2]
[338251689,1726441838591,-500.0,0.00021917,2]
[338251690,1726441838606,-565.06633155,0.00021917,2]
[338251691,1726441838616,-315.63195461,0.00021917,2]
[338251692,1726441838626,-500.0,0.00021917,2]
[338251693,1726441838636,-765.22,0.00021917,2]
[338251694,1726441838646,-500.0,0.00021917,2]
[338251695,1726441838662,-500.0,0.00021917,2]
[338251696,1726441838675,-500.0,0.00021917,2]
[338251697,1726441838684,-500.0,0.00021917,2]
[338251698,1726441838694,-500.0,0.00021917,2]
[338251699,1726441838703,-500.0,0.00021917,2]
[338251700,1726441838713,-500.0,0.00021917,2]
[338251701,1726441838722,-500.0,0.00021917,2]
[338251702,1726441838732,-500.0,0.00021917,2]
[338251703,1726441838743,-500.0,0.00021917,2]
[338251704,1726441838753,-500.0,0.00021917,2]
[338251705,1726441838763,-721.95,0.00021917,2]
[338251706,1726441838772,-500.0,0.00021917,2]
[338251707,1726441838782,-500.0,0.00021917,2]
[338251708,1726441838791,-500.0,0.00021917,2]
[338251709,1726441838801,-500.0,0.00021917,2]
[338251710,1726441838810,-500.0,0.00021917,2]
[338251711,1726441838820,-500.0,0.00021917,2]
[338251712,1726441838830,-500.0,0.00021917,2]
[338251713,1726441838839,-500.0,0.00021917,2]
[338251714,1726441838849,-500.0,0.00021917,2]
[338251715,1726441838859,-500.0,0.00021917,2]
[338251716,1726441838870,-566.58378326,0.00021917,2]
[338251717,1726441838879,-500.0,0.00021917,2]
[338251718,1726441838889,-500.0,0.00021917,2]
[338251719,1726441838898,-500.0,0.00021917,2]
[338251720,1726441838916,-500.0,0.00021917,2]
[338251721,1726441838929,-1442.6,0.00021917,2]
[338251722,1726441838939,-500.0,0.00021917,2]
[338251723,1726441838948,-500.74651227,0.00021917,2]
[338251724,1726441838957,-500.0,0.00021917,2]
[338251725,1726441838967,-500.0,0.00021917,2]
[338251726,1726441838976,-500.0,0.00021917,2]
[338251727,1726441838985,-501.3612227,0.00021917,2]
[338251728,1726441838994,-500.0,0.00021917,2]
[338251729,1726441839004,-500.0,0.00021917,2]
[338251730,1726441839013,-500.0,0.00021917,2]
[338251731,1726441839022,-736.26,0.00021917,2]
[338251732,1726441839031,-1018.33,0.00021917,2]
[338251733,1726441839040,-500.0,0.00021917,2]
[338251734,1726441839049,-500.0,0.00021917,2]
[338251735,1726441839060,-500.0,0.00021917,2]
[338251736,1726441839069,-500.0,0.00021917,2]
[338251737,1726441839078,-707.85,0.00021917,2]
[338251738,1726441839087,-530.1,0.00021917,2]
[338251739,1726441839097,-500.0,0.00021917,2]
[338251740,1726441839106,-500.0,0.00021917,2]
[338251741,1726441839116,-500.0,0.00021917,2]
[338251742,1726441839125,-500.0,0.00021917,2]
[338251743,1726441839135,-500.0,0.00021917,2]
[338251744,1726441839144,-513.66,0.00021917,2]
[338251745,1726441839155,-500.0,0.00021917,2]
[338251746,1726441839170,-693.4,0.00021917,2]
[338251747,1726441839179,-500.0,0.00021917,2]
[338251748,1726441839189,-374.51488463,0.00021917,2]
[338251749,1726441839201,-956.12,0.00021917,2]
[338251750,1726441839214,-764.89,0.00021917,2]
[338251751,1726441839224,-500.0,0.00021917,2]
[338251752,1726441839234,-500.0,0.00021917,2]
[338251753,1726441839249,-3054.63,0.00021917,2]
[338251754,1726441839260,-740.67,0.00021917,2]
[338251755,1726441839270,-500.0,0.00021917,2]
[338251756,1726441839279,-500.0,0.00021917,2]
[338251757,1726441839289,-533.12,0.00021917,2]
[338251758,1726441839299,-500.0,0.00021917,2]
[338251759,1726441839309,-500.0,0.00021917,2]
[338251760,1726441839319,-480.3433329,0.00021917,2]
[338251761,1726441839330,-500.0,0.00021917,2]
[338251762,1726441839339,-500.0,0.00021917,2]
[338251763,1726441839349,-507.51332619,0.00021917,2]
[338251764,1726441839359,-500.0,0.00021917,2]
[338251765,1726441839369,-500.0,0.00021917,2]
[338251766,1726441839378,-500.0,0.00021917,2]
[338251767,1726441839388,-182.31036439,0.00021917,2]
[338251768,1726441839398,-503.10535772,0.00021917,2]
[338251769,1726441839409,-500.0,0.00021917,2]
[338251770,1726441839419,-958.54,0.00021917,2]
[338251771,1726441839429,-1243.52,0.00021917,2]
[338251772,1726441839438,-500.0,0.00021917,2]
[338251773,1726441839449,-1411.64,0.00021917,2]
[338251774,1726441839460,-658.42,0.00021917,2]
[338251775,1726441839470,-500.0,0.00021917,2]
[338251776,1726441839481,-701.3,0.00021917,2]
[338251777,1726441839490,-1567.71,0.00021917,2]
[338251778,1726441839502,-500.0,0.00021917,2]
[338251779,1726441839513,-500.0,0.00021917,2]
[338251780,1726441839523,-500.0,0.00021917,2]
[338251781,1726441839533,-500.0,0.00021917,2]
[338251782,1726441839543,-244.99598177,0.00021917,2]
[338251783,1726441839554,-500.0,0.00021917,2]
[338251784,1726441839564,-500.0,0.00021917,2]
[338251785,1726441839574,-500.0,0.00021917,2]
[338251786,1726441839585,-1326.4,0.00021917,2]
[338251787,1726441839595,-500.0,0.00021917,2]
[338251788,1726441839605,-500.0,0.00021917,2]
[338251789,1726441839616,-500.0,0.00021917,2]
[338251790,1726441839626,-3226.34,0.00021917,2]
[338251791,1726441839636,-500.0,0.00021917,2]
[338251792,1726441839646,-1144.47,0.00021917,2]
[338251793,1726441839656,-500.0,0.00021917,2]
[338251794,1726441839666,-500.0,0.00021917,2]
[338251795,1726441839676,-500.0,0.00021917,2]
[338251796,1726441839686,-500.0,0.00021917,2]
[338251797,1726441839696,-500.0,0.00021917,2]
[338251798,1726441839706,-500.0,0.00021917,2]
[338251799,1726441839716,-500.0,0.00021917,2]
[338251800,1726441839726,-500.0,0.00021917,2]
[338251802,1726441839736,-500.0,0.00021917,2]
[338251803,1726441839746,-370.57821507,0.00021917,2]
[338251804,1726441839755,-1443.51,0.00021917,2]
[338251806,1726441839765,-500.0,0.00021917,2]
[338251808,1726441839776,-500.0,0.00021917,2]
[338251809,1726441839786,-500.0,0.00021917,2]
[338251810,1726441839796,-500.0,0.00021917,2]
[338251811,1726441839807,-1346.02,0.00021917,2]
[338251812,1726441839818,-500.0,0.00021917,2]
[338251813,1726441839828,-500.0,0.00021917,2]
[338251814,1726441839838,-684.57,0.00021917,2]
[338251815,1726441839848,-307.76023579,0.00021917,2]
[338251816,1726441839858,-2247.23,0.00021917,2]
[338251817,1726441839868,-778.53,0.00021917,2]
[338251818,1726441839878,-500.0,0.00021917,2]
[338251819,1726441839888,-503.94877411,0.00021917,2]
[338251820,1726441839899,-881.77,0.00021917,2]
[338251821,1726441839909,-1033.64,0.00021917,2]
[338251822,1726441839920,-1050.72,0.00021917,2]
[338251823,1726441839930,-581.21,0.00021917,2]
[338251824,1726441839939,-500.0,0.00021917,2]
[338251826,1726441839951,-500.0,0.00021917,2]
[338251828,1726441839961,-500.0,0.00021917,2]
[338251830,1726441839971,-559.24,0.00021917,2]
[338251832,1726441839982,-500.0,0.00021917,2]
[338251834,1726441839992,-500.0,0.00021917,2]
[338251836,1726441840001,-501.00261966,0.00021917,2]
[338251837,1726441840011,-500.0,0.00021917,2]
[338251839,1726441840021,-500.0,0.00021917,2]
[338251841,1726441840031,-500.0,0.00021917,2]
[338251843,1726441840041,-500.0,0.00021917,2]
[338251845,1726441840050,-500.0,0.00021917,2]
[338251846,1726441840059,-611.37,0.00021917,2]
[338251848,1726441840069,-500.0,0.00021917,2]
[338251850,1726441840079,-560.85,0.00021917,2]
[338251852,1726441840089,-500.0,0.00021917,2]
[338251854,1726441840099,-376.94589899,0.00021917,2]
[338251856,1726441840109,-1867.23,0.00021917,2]
[338251858,1726441840119,-500.0,0.00021917,2]
[338251860,1726441840129,-1063.14,0.00021917,2]
[338251862,1726441840139,-1901.79,0.00021917,2]
[338251864,1726441840149,-673.42,0.00021917,2]
[338251866,1726441840160,-500.46097483,0.00021917,2]
[338251868,1726441840169,-500.0,0.00021917,2]
[338251898,1726441840470,-500.0,0.00021917,2]
[338251900,1726441840481,-773.26,0.00021917,2]
[338251902,1726441840491,-200.0,0.00021917,2]
[338251904,1726441840503,-500.0,0.00021917,2]
[338251906,1726441840512,-500.0,0.00021917,2]
[338251908,1726441840522,-1400.13,0.00021917,2]
[338251910,1726441840531,-500.0,0.00021917,2]
[338251911,1726441840541,-1732.69,0.00021917,2]
[338251913,1726441840551,-500.0,0.00021917,2]
[338251915,1726441840560,-500.0,0.00021917,2]
[338251917,1726441840570,-500.0,0.00021917,2]
[338251919,1726441840580,-500.0,0.00021917,2]
[338251921,1726441840590,-500.0,0.00021917,2]
[338251923,1726441840600,-500.0,0.00021917,2]
[338251925,1726441840611,-500.0,0.00021917,2]
[338251927,1726441840620,-500.0,0.00021917,2]
[338251929,1726441840630,-1892.35,0.00021917,2]
[338251931,1726441840640,-500.0,0.00021917,2]
[338251933,1726441840650,-1706.45,0.00021917,2]
[338251935,1726441840659,-656.27,0.00021917,2]
[338251937,1726441840669,-500.0,0.00021917,2]
[338251939,1726441840679,-500.0,0.00021917,2]
[338251941,1726441840690,-672.73,0.00021917,2]
[338251943,1726441840699,-500.0,0.00021917,2]
[338251945,1726441840710,-1169.8,0.00021917,2]
[338251947,1726441840720,-500.0,0.00021917,2]
[338251949,1726441840730,-870.39,0.00021917,2]
[338251951,1726441840741,-500.0,0.00021917,2]
[338251953,1726441840750,-500.0,0.00021917,2]
[338251955,1726441840760,-503.65197408,0.00021917,2]
[338251957,1726441840771,-712.2,0.00021917,2]
[338251959,1726441840780,-500.0,0.00021917,2]
[338251961,1726441840791,-657.23,0.00021917,2]
[338251963,1726441840800,-500.0,0.00021917,2]
[338251965,1726441840811,-500.0,0.00021917,2]
[338251967,1726441840821,-4254.89,0.00021917,2]
[338251969,1726441840831,-500.0,0.00021917,2]
[338251971,1726441840840,-500.0,0.00021917,2]
[338251973,1726441840850,-500.0,0.00021917,2]
[338251975,1726441840860,-500.0,0.00021917,2]
[338251977,1726441840871,-527.9,0.00021917,2]
[338251979,1726441840882,-576.79,0.00021917,2]
[338251980,1726441840891,-500.0,0.00021917,2]
[338251982,1726441840901,-500.0,0.00021917,2]
[338251984,1726441840911,-1549.94,0.00021917,2]
[338251986,1726441840924,-649.66,0.00021917,2]
[338251988,1726441840934,-500.0,0.00021917,2]
[338251990,1726441840945,-500.0,0.00021917,2]
[338251992,1726441840955,-2249.06,0.00021917,2]
[338251994,1726441840965,-754.26,0.00021917,2]